Workbook

Sheet 1. Forside
A1: Ruderdal Forsyning A/S (Spildevand)
D8: Bilag A
D13: Indholdsfortegnelse
C16: Fane nr. 2 | D16: Samlet prisloft
C17: Fane nr. 3 | D17: Driftsomkostninger
C18: Fane nr. 4 | D18: Historiske investeringer
C19: Fane nr. 5 | D19: Gennemførte investeringer
C20: Fane nr. 6 | D20: Korrektion investeringer
C21: Fane nr. 7 | D21: Planlagte investeringer
C22: Fane nr. 8 | D22: 1:1 omkostninger
C23: Fane nr. 9 | D23: Miljø- og servicemål
C24: Fane nr. 10 | D24: Klimatilpasning
C25: Fane nr. 11 | D25: Nettofinansielle poster
C26: Fane nr. 12 | D26: Over- eller underdækning
C27: Fane nr. 13 | D27: Kontrol med indtægtsrammen og oversigt over ekstraordinære effektiviseringsgevinster
C28: Fane nr. 14 | D28: EAA-beregning

Sheet 2. Samlet prisloft
A1: ='1. Forside'!A1 -> Ruderdal Forsyning A/S (Spildevand)
B4: Fane 2. Samlet prisloft for 2015
B6: Driftsomkostninger
B7: Driftsomkostninger i prisloftet for 2014 | C7: ='3. Driftsomkostninger'!C20 -> 23797635.43 | D7: kr.
B8: Bortfald af væsentlige omkostninger | C8: =-'3. Driftsomkostninger'!C16 -> 0 | D8: kr.
B9: Korrektion for prisudviklingen 2014-2015 | C9: ='3. Driftsomkostninger'!C22 -> 19038.10834 | D9: kr.
B10: Forhøjelse til effektivt niveau iht. benchmarkingen | C10: ='3. Driftsomkostninger'!C28 -> 0 | D10: kr.
B11: Korrektion for generelt effektiviseringskrav | C11: =-'3. Driftsomkostninger'!C34 -> -104709.5959 | D11: kr.
B12: Korrektion for individuelt effektiviseringskrav | C12: =-'3. Driftsomkostninger'!C43 -> -1189881.772 | D12: kr.
B13: Driftsomkostninger i alt | C13: =SUM(C7:C12) -> 22522082.17 | D13: kr. | E13: =C13 -> 22522082.17 | F13: kr.
B14: Investeringer
B15: Tillæg for historiske investeringer | C15: ='4. Historiske investeringer'!C9 -> 29379167.6 | D15: kr.
B16: Tillæg for gennemførte investeringer i 2011-2013 | C16: ='5. Gennemførte investeringer'!F41 -> 2998238.493 | D16: kr.
B17: Korrektion af tillæg for planlagte investeringer vedrørende 2013 | C17: ='6. Korrektion investeringer'!C10 -> -213422.06 | D17: kr.
B18: Tillæg for planlagte investeringer i 2014 og 2015 | C18: ='7. Planlagte investeringer'!F31 -> 1971666.667 | D18: kr.
B19: Investeringstillæg i alt | C19: =SUM(C15:C18) -> 34135650.7 | D19: kr. | E19: =C19 -> 34135650.7 | F19: kr.
B20: Øvrige omkostninger mv.
B21: Tillæg for 1:1 omkostninger i 2015 | C21: ='8. 1-1 omkostninger'!C12 -> 11811500 | D21: kr.
B22: Tillæg vedr. revisorerklæringer og DANVA/FVD-kontingent | C22: ='8. 1-1 omkostninger'!C20 -> 122900 | D22: kr.
B23: Korrektion ift. faktiske 1:1 omkostninger i 2013 | C23: ='8. 1-1 omkostninger'!C26 -> -1907617 | D23: kr.
B24: Tillæg for driftsomkostninger til miljø- og servicemål i 2015 | C24: ='9. Miljø- og servicemål'!C9 -> 600000 | D24: kr.
B25: Korrektion ift. faktiske driftsomkostninger til miljø- og servicemål i 2013 | C25: ='9. Miljø- og servicemål'!C16 -> 0 | D25: kr.
B26: Tillæg for driftsomkostninger til medfinansiering af klimatilpasningsprojekter i 2015 | C26: ='10. Klimatilpasning'!C10 -> 290617 | D26: kr.
B27: Korrektion ift. faktiske omkostninger til medfinansiering af klimatilpasningsprojekter i 2013 | C27: ='10. Klimatilpasning'!C17 -> 0 | D27: kr.
B28: Tillæg/fradrag for nettofinansielle poster i 2015 | C28: ='11. Nettofinansielle poster'!C9 -> 558787 | D28: kr.
B29: Korrektion ift. faktiske nettofinansielle poster i 2013 | C29: ='11. Nettofinansielle poster'!C16 -> -395161 | D29: kr.
B30: Øvrige omkostninger mv. i alt | C30: =SUM(C21:C29) -> 11081026 | D30: kr. | E30: =C30 -> 11081026 | F30: kr.
B31: Historisk over- eller underdækning
B32: Tillæg/fradrag for over- eller underdækning til og med 2010 | C32: ='12. Over- eller underdækning'!C11 -> 603171.627 | D32: kr. | E32: =C32 -> 603171.627 | F32: kr.
B33: Korrektion i forhold til tidligere indtægtsramme
B34: Korrektion for overholdelse af indtægtsramme i prisloft 2013 | C34: ='13. Kontrol med indtægtsrammen'!E27 -> 4367559.775 | D34: kr. | E34: =C34 -> 4367559.775 | F34: kr.
B35: Samlet prisloft
B36: Indtægtsramme i 2015 | E36: =SUM(E13:E34) -> 72709490.28 | F36: kr.
B37: Debiteret vandmængde i 2013 | E37: 2861223 | F37: m3
B38: Prisloft 2015 | E38: =E36/E37 -> 25.41203194 | F38: kr./m3

Sheet 3. Driftsomkostninger
A1: ='1. Forside'!A1 -> Ruderdal Forsyning A/S (Spildevand)
B4: Fane 3. Driftsomkostninger
B6: Driftsomkostningerne i prisloftet for 2014
B7: Korrigerede driftsomkostninger i prisloftet for 2013 (DOiPL 2013) | C7: 24660762 | D7: kr.
B8: Prisfremskrivning 1,5 pct. | C8: =0.015*SUM(C7:C7) -> 369911.43 | D8: kr.
B9: Generelt effektiviseringskrav (0 pct.) | C9: 0 | D9: kr.
B10: Individuelt effektiviseringskrav | C10: -1233038 | D10: kr.
B11: Driftsomkostningerne i prisloftet for 2014 (DOiPL 2014) | C11: =SUM(C7:C10) -> 23797635.43 | D11: kr.
B14: Korrektion for forventet bortfald af væsentlige omkostninger
B15: Selskabets indberettede bortfald af væsentlige omkostninger inden 2015 | C15: 0 | D15: kr.
B16: Korrektion for forventet bortfald | C16: =SUM(C15:C15) -> 0 | D16: kr.
B19: Korrektion for prisudviklingen fra 2014-2015
B20: Driftsomkostningerne i prisloftet for 2014 | C20: =C11-C16 -> 23797635.43 | D20: kr.
B21: Prisudvikling 2014 - 2015 | C21: 0.08 | D21: pct.
B22: Korrektion for prisudvikling | C22: =C20*(C21/100) -> 19038.10834 | D22: kr.
B25: Eventuel forhøjelse til effektivt niveau iht. benchmarkingen
B26: Selskabets effektive driftsomkostninger iht. benchmarkingen | C26: 13388550 | D26: kr.
B27: Selskabets pristalskorrigerede driftsomkostninger i 2015-niveau | C27: =C20+C22 -> 23816673.54 | D27: kr.
B28: Eventuel forhøjelse til effektivt niveau | C28: =IF(C27>C26,0,C26-C27) -> 0 | D28: kr.
B31: Korrektion for generelt effektiviseringskrav
B32: Driftsomkostningerne i prisloftet for 2014 | C32: =C20 -> 23797635.43 | D32: kr.
B33: Generelt effektiviseringskrav | C33: 0.44 | D33: pct.
B34: Endeligt generelt effektiviseringskrav | C34: =C32*(C33/100) -> 104709.5959 | D34: kr.
B37: Korrektion for individuelt effektiviseringskrav
B38: Rå effektiviseringspotentiale | C38: 10409086 | D38: kr.
B39: Effektiviseringspotentiale efter eventuel korrektion for særlige forhold | C39: 10409086 | D39: kr.
B40: Effektiviseringspotentiale efter forsigtighedshensyn | C40: 7472458 | D40: kr.
B41: Effektiviseringspotentiale efter eventuel korrektion for sammensætning af signifikante costdrivere | C41: 7472458 | D41: kr.
B42: Umiddelbart effektiviseringskrav | C42: =C41/4 -> 1868114.5 | D42: kr.
B43: Endeligt individuelt effektiviseringskrav | C43: =IF(C42>0.05*C20,0.05*C20,IF(C42<0.01*C20,0,C42)) -> 1189881.772 | D43: kr.

Sheet 4. Historiske investeringer
A1: ='3. Driftsomkostninger'!A1 -> Ruderdal Forsyning A/S (Spildevand)
B4: Fane 4. Historiske investeringer
B6: Tillæg for historiske investeringer
B7: Værdi af selskabets materielle anlægsaktiver pr. 1. januar 2010 | C7: 906885783.9 | D7: kr.
B8: Den årlige standardafskrivning på de materielle anlægsaktiver iht. POLKA | C8: 29379167.6 | D8: kr.
B9: Tillæg i alt i 2015 | C9: =C8 -> 29379167.6 | D9: kr.

Sheet 5. Gennemførte investeringer
A1: ='4. Historiske investeringer'!A1 -> Ruderdal Forsyning A/S (Spildevand)
B4: Fane 5. Gennemførte investeringer i 2010 - 2013
B6: Tillæg for gennemførte investeringer i 2013
B7: Beskrivelse af investeringen | C7: Årstal | D7: Std. levetid (år) | E7: Anskaffelses-pris (kr.) | F7: Afskrivning
B8: Beluftningstanke, Mek/EL | C8: 2013 | D8: 20 | E8: 281974 | F8: =E8/D8 -> 14098.7 | G8: kr.
B9: Beluftningstanke, SRO | C9: 2013 | D9: 10 | E9: 71385 | F9: =E9/D9 -> 7138.5 | G9: kr.
B10: Efterbehandlingsanlæg (sandfilter), SRO | C10: 2013 | D10: 10 | E10: 5628 | F10: 562.8 | G10: kr.
B11: Efterklaringstanke, Mek/El | C11: 2013 | D11: 20 | E11: 37900 | F11: 1895 | G11: kr.
B12: Efterklaringstanke, SRO | C12: 2013 | D12: 10 | E12: 67539 | F12: 6753.9 | G12: kr.
B13: Indløb med riste, Mek/EL | C13: 2013 | D13: 20 | E13: 33005 | F13: 1650.25 | G13: kr.
B14: Indløb med riste, SRO | C14: 2013 | D14: 10 | E14: 45026 | F14: 4502.6 | G14: kr.
B15: Sand- og fedtfang, Kontruktioner | C15: 2013 | D15: 60 | E15: 116450 | F15: 1940.833333 | G15: kr.
B16: Sand- og fedtfang, Mek/EL | C16: 2013 | D16: 20 | E16: 30316 | F16: 1515.8 | G16: kr.
B17: Sand- og fedtfang, SRO | C17: 2013 | D17: 10 | E17: 39398 | F17: 3939.8 | G17: kr.
B18: Slutafvanding, slam - lavteknologisk (slambede), Mek/EL | C18: 2013 | D18: 20 | E18: 60967 | F18: 3048.35 | G18: kr.
B19: Installationer "mekaniske riste og SRO" Miljøklasse A. (20-30 m2) - SRO | C19: 2013 | D19: 10 | E19: 28143 | F19: 2814.3 | G19: kr.
B20: Kælder (7 - 20 m2) | C20: 2013 | D20: 75 | E20: 102585 | F20: 1367.8 | G20: kr.
B21: Andre bygninger (tekniske installationer, målere mv.) | C21: 2013 | D21: 75 | E21: 6950 | F21: 92.66666667 | G21: kr.
B22: Pumpeinstallation Miljøklasse A (100-300 l/s) - Mek/EL | C22: 2013 | D22: 20 | E22: 709576 | F22: 35478.8 | G22: kr.
B23: Pumpeinstallation Miljøklasse A (100-300 l/s) - SRO | C23: 2013 | D23: 10 | E23: 582813 | F23: 58281.3 | G23: kr.
B24: Kælder | C24: 2013 | D24: 75 | E24: 33412 | F24: 445.4933333 | G24: kr.
B25: Ledningsnet = Ø 200 mm | C25: 2013 | D25: 75 | E25: 5253052 | F25: 70040.69333 | G25: kr.
B26: Pumpestationer i brønde (< 6,25 m2), Mek/EL | C26: 2013 | D26: 20 | E26: 111423 | F26: 5571.15 | G26: kr.
B27: Pumpestationer i underjordiske bygværker ( | C27: 2013 | D27: 20 | E27: 527232 | F27: 26361.6 | G27: kr.
B28: Pumpestationer i underjordiske bygværker ( | C28: 2013 | D28: 10 | E28: 90052 | F28: 9005.2 | G28: kr.
B29: Pumpestationer m. overbygning (< 20 m2), Mek/EL | C29: 2013 | D29: 20 | E29: 61626 | F29: 3081.3 | G29: kr.
B30: Pumpestationer m. overbygning (< 20 m2), SRO | C30: 2013 | D30: 10 | E30: 213875 | F30: 21387.5 | G30: kr.
B31: Stik | C31: 2013 | D31: 75 | E31: 325090 | F31: 4334.533333 | G31: kr.
B32: Strømpeforing = Ø 200 mm | C32: 2013 | D32: 50 | E32: 5311514 | F32: 106230.28 | G32: kr.
B33: Tryksatte minipumpestationer (husstandssystemer) | C33: 2013 | D33: 30 | E33: 80661 | F33: 2688.7 | G33: kr.
B34: Administrationbygninger | C34: 2013 | D34: 75 | E34: 11020 | F34: 146.9333333 | G34: kr.
B35: Arbejdsplads | C35: 2013 | D35: 5 | E35: 433317 | F35: 86663.4 | G35: kr.
B36: Køretøjer, entreprenørmaskiner | C36: 2013 | D36: 5 | E36: 80341 | F36: 16068.2 | G36: kr.
B37: Køretøjer, personbil | C37: 2013 | D37: 5 | E37: 125806 | F37: 25161.2 | G37: kr.
B38: Brønde | C38: 2013 | D38: 75 | E38: 1126604 | F38: 15021.38667 | G38: kr.
B39: Tillæg for 2013 | F39: =SUM(F8:F38) -> 537288.97 | G39: kr.
B40: Tillæg for 2010 - 2012 | F40: 2460949.523 | G40: kr.
B41: Samlet tillæg for gennemførte investeringer | F41: =F39+F40 -> 2998238.493 | G41: kr.

Sheet 6. Korrektion investeringer
A1: ='5. Gennemførte investeringer'!A1 -> Ruderdal Forsyning A/S (Spildevand)
B4: Fane 6. Korrektion af tillæg for planlagte investeringer
B6: Korrektion af tillæg for planlagte investeringer vedr. 2013
B7: Tillæg for planlagte investeringer i 2013 i prisloft 2013 | C7: 377333 | D7: kr.
B8: Tillæg for planlagte investeringer i 2013 i prisloft 2014 | C8: 910667 | D8: kr.
B9: Selskabets faktiske afskrivninger på gennemførte investeringer i 2013 | C9: ='5. Gennemførte investeringer'!F39 -> 537288.97 | D9: kr.
B10: Korrektion af tillæg for planlagte investeringer vedr. 2013 | C10: =C9-C7+C9-C8 -> -213422.06 | D10: kr.

Sheet 7. Planlagte investeringer
A1: ='6. Korrektion investeringer'!A1 -> Ruderdal Forsyning A/S (Spildevand)
B4: Fane 7. Planlagte investeringer
B6: Tillæg for planlagte investeringer i 2014 og 2015
B7: Beskrivelse af investeringen | C7: Årstal | D7: Std. levetid (år) | E7: Anskaffelses-pris (kr.) | F7: Afskrivning
B8: Forsinkelsesbassiner, lukkede med automatisk rensning og SRO Miljøklasse A (1.000-3.000 m3) - Konstruktioner | C8: 2014 | D8: 75 | E8: 10000000 | F8: =E8/D8 -> 133333.3333 | G8: kr.
B9: Forsinkelsesbassiner, lukkede med automatisk rensning og SRO Miljøklasse A (1.000-3.000 m3) - Mek/EL | C9: 2014 | D9: 20 | E9: 1300000 | F9: =E9/D9 -> 65000 | G9: kr.
B10: Efterbehandlingsanlæg (sandfilter), Konstruktioner | C10: 2014 | D10: 60 | E10: 2000000 | F10: =E10/D10 -> 33333.33333 | G10: kr.
B11: Efterbehandlingsanlæg (sandfilter), Mek/EL | C11: 2014 | D11: 20 | E11: 3800000 | F11: 190000 | G11: kr.
B12: Efterbehandlingsanlæg (sandfilter), SRO | C12: 2014 | D12: 10 | E12: 300000 | F12: 30000 | G12: kr.
B13: Ø 200 mm < Ledningsnet = Ø 500 mm | C13: 2014 | D13: 75 | E13: 10000000 | F13: 133333.3333 | G13: kr.
B14: Pumpestationer m. overbygning (< 20 m2), Konstruktioner | C14: 2014 | D14: 50 | E14: 2000000 | F14: 40000 | G14: kr.
B15: Pumpestationer m. overbygning (< 20 m2), Mek/EL | C15: 2014 | D15: 20 | E15: 700000 | F15: 35000 | G15: kr.
B16: Pumpestationer m. overbygning (< 20 m2), SRO | C16: 2014 | D16: 10 | E16: 300000 | F16: 30000 | G16: kr.
B17: Ø 200 mm < Ledningsnet = Ø 500 mm | C17: 2014 | D17: 75 | E17: 4100000 | F17: 54666.66667 | G17: kr.
B18: Ø 200 mm < Ledningsnet = Ø 500 mm | C18: 2014 | D18: 75 | E18: 7200000 | F18: 96000 | G18: kr.
B19: Køretøjer, små lastvogne (< 3.500 kg.) | C19: 2014 | D19: 5 | E19: 500000 | F19: 100000 | G19: kr.
B20: Strømpeforing Ø 200 mm < Ledningsnet = Ø 500 mm | C20: 2014 | D20: 50 | E20: 8200000 | F20: 164000 | G20: kr.
B21: Brønde | C21: 2014 | D21: 50 | E21: 1000000 | F21: 20000 | G21: kr.
B22: Installationer "mekaniske riste og SRO" Miljøklasse A. (7-20 m2) - SRO | C22: 2014 | D22: 10 | E22: 2000000 | F22: 200000 | G22: kr.
B23: Forsinkelsesbassiner, lukkede med automatisk rensning og SRO Miljøklasse A (500-1.000 m3) - Konstruktioner | C23: 2015 | D23: 75 | E23: 12000000 | F23: 160000 | G23: kr.
B24: Forsinkelsesbassiner, lukkede med automatisk rensning og SRO Miljøklasse A (500-1.000 m3) - Mek/EL | C24: 2015 | D24: 20 | E24: 2500000 | F24: 125000 | G24: kr.
B25: Forsinkelsesbassiner, lukkede med automatisk rensning og SRO Miljøklasse A (500-1.000 m3) - SRO | C25: 2015 | D25: 10 | E25: 500000 | F25: 50000 | G25: kr.
B26: Ø 200 mm < Ledningsnet = Ø 500 mm | C26: 2015 | D26: 75 | E26: 9000000 | F26: 120000 | G26: kr.
B27: Ø 200 mm < Ledningsnet = Ø 500 mm | C27: 2015 | D27: 50 | E27: 8600000 | F27: 172000 | G27: kr.
B28: Brønde | C28: 2015 | D28: 50 | E28: 1000000 | F28: 20000 | G28: kr.
B29: Tillæg for 2014 | F29: =SUMIF(C8:C28,"2014",F8:F28) -> 1324666.667 | G29: kr.
B30: Tillæg for 2015 | F30: =SUMIF(C8:C28,"2015",F8:F28) -> 647000 | G30: kr.
B31: Tillæg i alt | F31: =F29+F30 -> 1971666.667 | G31: kr.

Sheet 8. 1-1 omkostninger
A1: ='7. Planlagte investeringer'!A1 -> Ruderdal Forsyning A/S (Spildevand)
B4: Fane 8. 1:1 omkostninger
B6: Tillæg for budgetterede 1:1 omkostninger i 2015
B7: Betaling til Forsyningssekretariatet | C7: 16500 | D7: kr.
B8: Spildevandsafgift | C8: 710000 | D8: kr.
B9: Køb af varer og tjenesteydelser hos et andet prisloftreguleret vandselskab | C9: 10400000 | D9: kr.
B10: Tjenestemandspensioner | C10: 335000 | D10: kr.
B11: Ejendomsskatter | C11: 350000 | D11: kr.
B12: Tillæg i alt | C12: =SUM(C7:C11) -> 11811500 | D12: kr.
B17: Tillæg for budgetterede nødvendige udgifter til revisorerklæringer samt ordinært medlemskab af DANVA og FVD i 2015
B18: Betaling for ordinært medlemskab af DANVA/FVD | C18: 102000 | D18: kr.
B19: Betaling for revisorerklæringer | C19: 20900 | D19: kr.
B20: Tillæg i alt | C20: =SUM(C18:C19) -> 122900 | D20: kr.
B23: Korrektion af tillæg for faktiske 1:1 omkostninger (inkl. revisorerklæringer og ordinært medlemskab af DANVA/FVD) i 2013
B24: Selskabets faktiske 1:1 omkostninger mv. i 2013, jf. reguleringsregnskabet | C24: 14103100 | D24: kr.
B25: Tillæg for budgetterede 1:1 omkostninger mv. i prisloft 2013 | C25: 16010717 | D25: kr.
B26: Korrektion af tillæg for budgetterede 1:1 omkostninger mv. i 2013 | C26: =C24-C25 -> -1907617 | D26: kr.

Sheet 9. Miljø- og servicemål
A1: ='8. 1-1 omkostninger'!A1 -> Ruderdal Forsyning A/S (Spildevand)
B4: Fane 9. Driftsomkostninger til miljø- og servicemål
B6: Tillæg for budgetterede driftsomkostninger til miljø- og servicemål i 2015
B7: Rottebekæmpelse | C7: 200000 | D7: kr.
B8: Dokumenteret Spildevands Sikkerhed (DSS) | C8: 400000 | D8: kr.
B9: Tillæg i alt | C9: =SUM(C7:C8) -> 600000 | D9: kr.
B13: Korrektion af tillæg for faktiske driftsomkostninger til miljø- og servicemål i 2013
B14: Selskabets faktiske driftsomkostninger til miljø- og servicemål i 2013, jf. reguleringsregnskabet | C14: 0 | D14: kr.
B15: Tillæg for budgetterede driftsomkostninger til miljø- og servicemål i prisloft 2013 | C15: 0 | D15: kr.
B16: Korrektion af tillæg for budgetterede driftsomkostninger til miljø- og servicemål i 2013 | C16: =C14-C15 -> 0 | D16: kr.

Sheet 10. Klimatilpasning
A1: ='9. Miljø- og servicemål'!A1 -> Ruderdal Forsyning A/S (Spildevand)
B4: Fane 10. Medfinansiering af klimatilpasningsprojekter
B7: Tillæg for budgetterede omkostninger til medfinansiering af klimatilpasningsprojekter i 2015
B8: LAR-anlæg ved Holmebjerg og Ellesletten (godkendt i PL2014) | C8: 184333 | D8: kr.
B9: Afløb fra sø ved Bregnerødvej (godkendt i PL2015) | C9: 106284 | D9: kr.
B10: Tillæg i alt | C10: =SUM(C8:C9) -> 290617 | D10: kr.
B14: Korrektion af tillæg for faktiske omkostninger til medfinansiering af klimatilpasningsprojekter i 2013
B15: Selskabets faktiske driftsomkostninger til klimatilpasningsprojekter i 2013, jf. reguleringsregnskabet | D15: kr.
B16: Tillæg for budgetterede driftsomkostninger til klimatilpasningsprojekter i prisloft 2013 | D16: kr.
B17: Korrektion af tillæg for budgetterede omkostninger til klimatilpasningsprojekter i 2013 | C17: =C15-C16 -> 0 | D17: kr.

Sheet 11. Nettofinansielle poster
A1: ='10. Klimatilpasning'!A1 -> Ruderdal Forsyning A/S (Spildevand)
B4: Fane 11. Nettofinansielle poster
B6: Tillæg for budgetterede nettofinansielle poster i 2015
B7: Budgetterede renteudgifter og gebyrer i 2015 | C7: 613037 | D7: kr.
B8: Budgetterede renteindtægter i 2015 | C8: 54250 | D8: kr.
B9: Tillæg/fradrag i alt | C9: =C7-C8 -> 558787 | D9: kr.
B13: Korrektion af tillæg for faktiske nettofinansielle poster i 2013
B14: Selskabets faktiske nettofinansielle poster i 2013, jf. reguleringsregnskabet | C14: -237161 | D14: kr.
B15: Tillæg for budgetterede nettofinansielle poster i prisloft 2013 | C15: 158000 | D15: kr.
B16: Korrektion af tillæg for budgetterede nettofinansielle poster i 2013 | C16: =C14-C15 -> -395161 | D16: kr.

Sheet 12. Over- eller underdækning
A1: ='11. Nettofinansielle poster'!A1 -> Ruderdal Forsyning A/S (Spildevand)
B4: Fane 12. Over- eller underdækning til og med 2010
B6: Tillæg/fradrag for over- eller underdækning til og med 2010
B7: Opgjort over- eller underdækning per 31. december 2010 | C7: 6118695 | D7: kr.
B8: Heraf beløb indregnet i prislofterne for 2011 - 2014 | C8: 2499665.238 | D8: kr.
B9: Endnu ikke indregnet over- eller underdækning | C9: =C7-C8 -> 3619029.762 | D9: kr.
B10: Resterende indregningsperiode (fastsat i prisloftet for 2012) | C10: 6 | D10: år
B11: Tillæg/fradrag i alt | C11: =IF(C7=0,0,C9/C10) -> 603171.627 | D11: kr.

Sheet 13. Kontrol med indtægtsrammen
A1: ='12. Over- eller underdækning'!A1 -> Ruderdal Forsyning A/S (Spildevand)
B4: Fane 13. Korrektion for overholdelse af indtægtsrammen i prisloftet for 2013
B6: Samlet opgørelse vedrørende overholdelse af indtægtsrammen i prisloftet for 2013
B7: Indtægtsramme i prisloftet for 2013 | E7: 72570486.78 | F7: kr.
B8: Ikke anvendt likviditet vedrørende investeringer i 2013
B9: Tillæg for historiske investeringer | C9: 30103769 | D9: kr.
B10: Tillæg for gennemførte investeringer i 2011 | C10: 1438888 | D10: kr.
B11: Korrektion af tillæg for planlagte investeringer i 2011 | C11: 252463 | D11: kr.
B12: Tillæg for planlagte investeringer i 2012 og 2013 | C12: 1240107 | D12: kr.
B13: Indtægter fra tilslutningsbidrag | C13: 171748 | D13: kr.
B14: Indtægter fra salg af anlægsaktiver | C14: 0 | D14: kr.
B15: Erstatninger vedr. anlægsaktiver mv. | C15: 0 | D15: kr.
B16: Ekstraordinær effektiviseringsgevinst anvendt til investeringer | C16: 4086854 | D16: kr.
B17: Udgifter til investeringer | C17: -41745646 | D17: kr.
B18: Ikke anvendt likviditet vedr. investeringer i alt | C18: =SUM(C9:C17) -> -4451817 | D18: kr. | E18: =IF(C18<0,0,-C18) -> 0 | F18: kr.
B19: Ekstraordinære effektiviseringsgevinster anvendt til takstnedsættelse
B20: Ekstraordinær effektiviseringsgevinst anvendt til takstnedsættelse | C20: 0 | D20: kr. | E20: =-C20 -> 0 | F20: kr.
B21: Korrektion af ikke opkrævet tillæg fra 2011 i prisloft 2013
B22: Korrektion af ikke opkrævet tillæg fra 2011 i prisloft 2013 | C22: 0 | D22: kr. | E22: =-C22 -> 0 | F22: kr.
B23: Indtægter fra primære aktiviteter mv.
B24: Indtægter fra kubikmetertakster, faste takster, særbidrag, målergebyrer samt andre takster og gebyrer | C24: 67347202 | D24: kr.
B25: Andre indtægter i prisloftåret, som selskabet har opnået i forbindelse med eller som følge af selskabets primære aktiviteter | C25: 855725 | D25: kr.
B26: Indtægter fra primære aktiviteter mv. i alt | C26: =SUM(C24:C25) -> 68202927 | D26: kr. | E26: =-C26 -> -68202927 | F26: kr.
B27: Tillæg/fradrag i prisloftet for 2015 i alt | E27: =E7+E18+E20+E22+E26 -> 4367559.775 | F27: kr.
B31: Oversigt over ekstraordinære effektiviseringsgevinster
C33: 2012 | E33: 2013 | G33: 2014 | I33: 2015 | K33: 2016
B34: Indhentet ekstraordinær effektiviseringsgevinst | C34: 0 | D34: kr. | E34: 4086854 | F34: kr. | H34: kr. | J34: kr. | L34: kr.
B35: Gevinst anvendt til investeringer | C35: 0 | D35: kr. | E35: 4086854 | F35: kr. | H35: kr. | J35: kr. | L35: kr.
B36: Gevinst anvendt til takstnedsættelse | C36: 0 | D36: kr. | E36: 0 | F36: kr. | H36: kr. | J36: kr. | L36: kr.
B37: Korrektion for effektiviseringsgevinst der ikke er anvendt inden 4 år | C37: 0 | D37: kr. | E37: 0 | F37: kr. | H37: kr. | J37: kr. | K37: =IF(C38>SUM(C35:I36),C38-SUM(E35:I36),0)*-1 -> 0 | L37: kr.
B38: Resterende gevinst | C38: =C34-C35-C36 -> 0 | D38: kr. | E38: =C38+E34-E35-E36 -> 0 | F38: kr. | G38: =E38+G34-G35-G36 -> 0 | H38: kr. | I38: =G38+I34-I35-I36 -> 0 | J38: kr. | K38: =K34-K35-K36+K37+I38 -> 0 | L38: kr.

Sheet 14. EAA-beregning
B2: Vejledning:
B3: Dette dokument kan anvendes til at vurdere, hvorvidt klimatilpasning ved hhv. sædvanlig afhjælpning eller alternativt projekt er mest omkostningseffektivt. Oplysninger om forventet årlig effektiv rente
B4: samt omkostninger til anlæg og drift skal indtastes i de orange celler. Det bemærkes, at omkostninger indgår som negative tal.
B5: Herefter beregnes den årlige ækvivalente annuitet ved de to typer klimatilpasningsinitiativer. Sidst beregnes hvilket klimatilpasningsinitiativ, som er mest omkostningseffektivt
B8: Rente | E8: Resultater
B10: Forventet årlig effektiv rente | C10: 0.0229 | E10: Årlig ækvivalent annuitet ved sædvanlig afhjælpning | F10: =IF(SUM($C$21:$C$144)<0,($C$10*SUM($K$25:$K$144)/(1-(1+$C$10)^(-($C$19-$C$18+1)))),"") -> -673900.6945
E11: Årlig ækvivalent annuitet ved alternativt klimatilpasningsprojekt | F11: =IF(SUM($F$25:$G$144)<0,($C$10*SUM($L$25:$L$144)/(1-(1+$C$10)^(-($F$19-$F$18+1)))),"") -> -46199.71363
E13: Konklusion | F13: =IF($F$10<0,IF($F$10<>$F$11,IF($F$10>$F$11,"Sædvanlig afhjælpning er mest omkostningseffektivt","Alternativt projekt er mest omkostningseffektivt"),"Sædvanlig afhjælpning og alternativt projekt er lige omkostningseffektivt"),"") -> Alternativt projekt er mest omkostningseffektivt
B16: Klimatilpasning ved sædvanlig afhjælpning | E16: Klimatilpasning ved alternativt klimatilpasningsprojekt
B18: Projektets startår | C18: 2015 | E18: Projektets startår | F18: 2015 | L18: =IF($E18>=$F$18,IF($E18<=$F$19,SUM($F18:$G18),""),"") -> 
B19: Projektets slutår | C19: 2089 | E19: Projektets slutår | F19: 2064 | L19: =IF($E19>=$F$18,IF($E19<=$F$19,SUM($F19:$G19),""),"") -> 
B21: Anlægsomkostninger | C21: -18568000
B24: År | C24: Forventede driftsomkostninger i år t | E24: År | F24: Tilskud til anlægsomkostninger betalt i år t | G24: Tilskud til driftsomkostninger betalt i år t | I24: Sædvanlig afhjælpning: Cash-flow for anlæg | J24: Sædvanlig afhjælpning: Cash-flow for drift | K24: Tilbagediskonteret cash-flow for sædvanlig afhjælpning | L24: Tilbagediskonteret cash-flow for alternativt projekt
B25: 2013 | E25: 2013 | I25: =IF($B25=$C$18,$C$21,"") ->  | J25: =IF($B25>=$C$18,IF($B25<=$C$19,$C25,""),"") ->  | K25: =IF(SUM($I25:$J25)/((1+$C$10)^($B25-$C$18))<0,SUM($I25:$J25)/((1+$C$10)^($B25-$C$18)),"") ->  | L25: =IF($E25>=$F$18,IF($E25<=$F$19,IF(SUM($F25:$G25)/((1+$C$10)^($E25-$F$18))<0,SUM($F25:$G25)/((1+$C$10)^($E25-$F$18)),""),""),"") -> 
B26: 2014 | E26: 2014 | I26: =IF($B26=$C$18,$C$21,"") ->  | J26: =IF($B26>=$C$18,IF($B26<=$C$19,$C26,""),"") ->  | K26: =IF(SUM($I26:$J26)/((1+$C$10)^($B26-$C$18))<0,SUM($I26:$J26)/((1+$C$10)^($B26-$C$18)),"") ->  | L26: =IF($E26>=$F$18,IF($E26<=$F$19,IF(SUM($F26:$G26)/((1+$C$10)^($E26-$F$18))<0,SUM($F26:$G26)/((1+$C$10)^($E26-$F$18)),""),""),"") -> 
B27: =B26+1 -> 2015 | C27: -150000 | E27: =E26+1 -> 2015 | F27: -106284 | I27: -18568000 | J27: -150000 | K27: -18718000 | L27: -106284
B28: =B27+1 -> 2016 | C28: -150000 | E28: =E27+1 -> 2016 | F28: -106284 | J28: -150000 | K28: -146641.9005 | L28: -103904.585
B29: 2017 | C29: -150000 | E29: 2017 | F29: -106284 | J29: -150000 | K29: -143358.9798 | L29: -101578.4388
B30: 2018 | C30: -150000 | E30: 2018 | F30: -106284 | J30: -150000 | K30: -140149.555 | L30: -99304.36871
B31: 2019 | C31: -150000 | E31: 2019 | F31: -106284 | J31: -150000 | K31: -137011.9807 | L31: -97081.20903
B32: 2020 | C32: -150000 | E32: 2020 | F32: -106284 | J32: -150000 | K32: -133944.6482 | L32: -94907.81995
B33: 2021 | C33: -150000 | E33: 2021 | F33: -106284 | J33: -150000 | K33: -130945.9852 | L33: -92783.08725
B34: 2022 | C34: -150000 | E34: 2022 | F34: -106284 | J34: -150000 | K34: -128014.4542 | L34: -90705.92165
B35: 2023 | C35: -150000 | E35: 2023 | F35: -106284 | J35: -150000 | K35: -125148.5523 | L35: -88675.25823
B36: 2024 | C36: -150000 | E36: 2024 | F36: -106284 | J36: -150000 | K36: -122346.8104 | L36: -86690.05595
B37: 2025 | C37: -150000 | E37: 2025 | F37: -106284 | J37: -150000 | K37: -119607.7919 | L37: -84749.29705
B38: 2026 | C38: -150000 | E38: 2026 | F38: -106284 | J38: -150000 | K38: -116930.0928 | L38: -82851.98656
B39: 2027 | C39: -150000 | E39: 2027 | F39: -106284 | J39: -150000 | K39: -114312.3402 | L39: -80997.15178
B40: 2028 | C40: -150000 | E40: 2028 | F40: -106284 | J40: -150000 | K40: -111753.1921 | L40: -79183.8418
B41: 2029 | C41: -150000 | E41: 2029 | F41: -106284 | J41: -150000 | K41: -109251.3365 | L41: =IF($E41>=$F$18,IF($E41<=$F$19,IF(SUM($F41:$G41)/((1+$C$10)^($E41-$F$18))<0,SUM($F41:$G41)/((1+$C$10)^($E41-$F$18)),""),""),"") -> -77411.12699
B42: 2030 | C42: -150000 | E42: 2030 | J42: -150000 | K42: -106805.4908
B43: 2031 | C43: -150000 | E43: 2031 | J43: -150000 | K43: -104414.401
B44: 2032 | C44: -150000 | E44: 2032 | J44: -150000 | K44: -102076.8413
B45: 2033 | C45: -150000 | E45: 2033 | J45: -150000 | K45: -99791.61337
B46: 2034 | C46: -150000 | E46: 2034 | J46: -150000 | K46: -97557.54558
B47: 2035 | C47: -150000 | E47: 2035 | J47: -150000 | K47: -95373.4926
B48: 2036 | C48: -150000 | E48: 2036 | J48: -150000 | K48: -93238.33473
B49: 2037 | C49: -150000 | E49: 2037 | J49: -150000 | K49: -91150.97735
B50: 2038 | C50: -150000 | E50: 2038 | J50: -150000 | K50: -89110.35033
B51: 2039 | C51: -150000 | E51: 2039 | J51: -150000 | K51: -87115.4075
B52: 2040 | C52: -150000 | E52: 2040 | J52: -150000 | K52: -85165.12611
B53: 2041 | C53: -150000 | E53: 2041 | J53: -150000 | K53: -83258.50631
B54: 2042 | C54: -150000 | E54: 2042 | J54: -150000 | K54: -81394.57065
B55: 2043 | C55: -150000 | E55: 2043 | J55: -150000 | K55: -79572.36352
B56: 2044 | C56: -150000 | E56: 2044 | J56: -150000 | K56: -77790.95075
B57: 2045 | C57: -150000 | E57: 2045 | J57: -150000 | K57: -76049.41905
B58: 2046 | C58: -150000 | E58: 2046 | J58: -150000 | K58: -74346.8756
B59: 2047 | C59: -150000 | E59: 2047 | J59: -150000 | K59: -72682.44755
B60: 2048 | C60: -150000 | E60: 2048 | J60: -150000 | K60: -71055.2816
B61: 2049 | C61: -150000 | E61: 2049 | J61: -150000 | K61: -69464.54356
B62: 2050 | C62: -150000 | E62: 2050 | J62: -150000 | K62: -67909.41789
B63: 2051 | C63: -150000 | E63: 2051 | J63: -150000 | K63: -66389.10733
B64: 2052 | C64: -150000 | E64: 2052 | J64: -150000 | K64: -64902.83247
B65: 2053 | C65: -150000 | E65: 2053 | J65: -150000 | K65: -63449.83133
B66: 2054 | C66: -150000 | E66: 2054 | J66: -150000 | K66: -62029.35901
B67: 2055 | C67: -150000 | E67: 2055 | J67: -150000 | K67: -60640.68727
B68: 2056 | C68: -150000 | E68: 2056 | J68: -150000 | K68: -59283.10418
B69: 2057 | C69: -150000 | E69: 2057 | J69: -150000 | K69: -57955.91376
B70: 2058 | C70: -150000 | E70: 2058 | J70: -150000 | K70: -56658.43558
B71: 2059 | C71: -150000 | E71: 2059 | J71: -150000 | K71: -55390.00448
B72: 2060 | C72: -150000 | E72: 2060 | J72: -150000 | K72: -54149.97016
B73: 2061 | C73: -150000 | E73: 2061 | J73: -150000 | K73: -52937.6969
B74: 2062 | C74: -150000 | E74: 2062 | J74: -150000 | K74: -51752.56321
B75: 2063 | C75: -150000 | E75: 2063 | J75: -150000 | K75: -50593.96149
B76: 2064 | C76: -150000 | E76: 2064 | J76: -150000 | K76: -49461.29777
B77: 2065 | C77: -150000 | E77: 2065 | J77: -150000 | K77: -48353.99137
B78: 2066 | C78: -150000 | E78: 2066 | J78: -150000 | K78: -47271.4746
B79: 2067 | C79: -150000 | E79: 2067 | J79: -150000 | K79: -46213.19249
B80: 2068 | C80: -150000 | E80: 2068 | J80: -150000 | K80: -45178.60249
B81: 2069 | C81: -150000 | E81: 2069 | J81: -150000 | K81: -44167.17421
B82: 2070 | C82: -150000 | E82: 2070 | J82: -150000 | K82: -43178.38909
B83: 2071 | C83: -150000 | E83: 2071 | J83: -150000 | K83: -42211.74024
B84: 2072 | C84: -150000 | E84: 2072 | J84: -150000 | K84: -41266.73208
B85: 2073 | C85: -150000 | E85: 2073 | J85: -150000 | K85: -40342.88012
B86: 2074 | C86: -150000 | E86: 2074 | J86: -150000 | K86: -39439.71075
B87: 2075 | C87: -150000 | E87: 2075 | J87: -150000 | K87: -38556.76092
B88: 2076 | C88: -150000 | E88: 2076 | J88: -150000 | K88: -37693.57799
B89: 2077 | C89: -150000 | E89: 2077 | J89: -150000 | K89: -36849.71941
B90: 2078 | C90: -150000 | E90: 2078 | I90: =IF($B90=$C$18,$C$21,"") ->  | J90: =IF($B90>=$C$18,IF($B90<=$C$19,$C90,""),"") -> -150000 | K90: =IF(SUM($I90:$J90)/((1+$C$10)^($B90-$C$18))<0,SUM($I90:$J90)/((1+$C$10)^($B90-$C$18)),"") -> -36024.75258 | L90: =IF($E90>=$F$18,IF($E90<=$F$19,IF(SUM($F90:$G90)/((1+$C$10)^($E90-$F$18))<0,SUM($F90:$G90)/((1+$C$10)^($E90-$F$18)),""),""),"") -> 
B91: 2079 | C91: -150000 | E91: 2079 | J91: -150000 | K91: -35218.25455
B92: =B91+1 -> 2080 | C92: -150000 | E92: =E91+1 -> 2080 | J92: -150000 | K92: -34429.81186
B93: =B92+1 -> 2081 | C93: -150000 | E93: =E92+1 -> 2081 | J93: -150000 | K93: -33659.02029
B94: =B93+1 -> 2082 | C94: -150000 | E94: =E93+1 -> 2082 | J94: -150000 | K94: -32905.48469
B95: =B94+1 -> 2083 | C95: -150000 | E95: =E94+1 -> 2083 | J95: -150000 | K95: -32168.81874
B96: 2084 | C96: -150000 | E96: 2084 | J96: -150000 | K96: -31448.64478
B97: 2085 | C97: -150000 | E97: 2085 | J97: -150000 | K97: -30744.59359
B98: 2086 | C98: -150000 | E98: 2086 | J98: -150000 | K98: -30056.30422
B99: 2087 | C99: -150000 | E99: 2087 | J99: -150000 | K99: -29383.42381
B100: 2088 | C100: -150000 | E100: 2088 | J100: -150000 | K100: -28725.6074
B101: 2089 | C101: -150000 | E101: 2089 | J101: -150000 | K101: -28082.51775
B102: 2090 | E102: 2090
B103: 2091 | E103: 2091
B104: 2092 | E104: 2092
B105: =B104+1 -> 2093 | E105: =E104+1 -> 2093
B106: =B105+1 -> 2094 | E106: =E105+1 -> 2094
B107: 2095 | E107: 2095
B108: 2096 | E108: 2096
B109: 2097 | E109: 2097
B110: 2098 | E110: 2098
B111: 2099 | E111: 2099
B112: 2100 | E112: 2100
B113: 2101 | E113: 2101
B114: 2102 | E114: 2102
B115: 2103 | E115: 2103
B116: 2104 | E116: 2104
B117: 2105 | E117: 2105
B118: 2106 | E118: 2106
B119: 2107 | E119: 2107
B120: 2108 | E120: 2108
B121: 2109 | E121: 2109
B122: 2110 | E122: 2110
B123: 2111 | E123: 2111
B124: 2112 | E124: 2112
B125: 2113 | E125: 2113
B126: 2114 | E126: 2114
B127: 2115 | E127: 2115
B128: 2116 | E128: 2116
B129: 2117 | E129: 2117
B130: 2118 | E130: 2118
B131: 2119 | E131: 2119
B132: 2120 | E132: 2120
B133: 2121 | E133: 2121
B134: 2122 | E134: 2122
B135: 2123 | E135: 2123
B136: 2124 | E136: 2124
B137: 2125 | E137: 2125
B138: 2126 | E138: 2126
B139: 2127 | E139: 2127
B140: 2128 | E140: 2128
B141: 2129 | E141: 2129
B142: 2130 | E142: 2130
B143: 2131 | E143: 2131
B144: 2132 | E144: 2132
